Cogmind - Beta 9.3 @@@ ROGUE MODE // 2019.12.25 @ 22:31:32 // Winter2019/RPGLIKE Player: sideriver81 Result: Self-destructed Performance ------------- Evolutions (2) 1000 Regions Visited (5) 1000 Robots Destroyed (24) 120 Value Destroyed (542) 542 Prototype IDs (24) 480 Alien Tech Used (0) 0 Bonus (300) 300 TOTAL SCORE: 3442 Bonus ------- Aligned with FarCom 300 Cogmind --------- Core Integrity 166/800 Matter 290/300 Energy 119/125 System Corruption 0% Temperature Cool (0) Movement Walking (120) Location -8/Materials Parts ------- > --- POWER (1) -------- Light Ion Engine > --- PROPULSION (2) --- Improved Aluminum Leg Improved Aluminum Leg > --- UTILITY (4) ------ Visual Processing Unit Terrain Scanner Armor Integrity Analyzer Supersonic Drone Bay (0/1) > --- WEAPON (3) ------- Assault Rifle Light Assault Rifle Improved Datajack > --- INVENTORY (1) ---- Mining Laser Peak State ------------ > --- POWER ------------ Light Ion Engine > --- PROPULSION ------- Improved Aluminum Leg Improved Aluminum Leg > --- UTILITY ---------- Visual Processing Unit Terrain Scanner Armor Integrity Analyzer Supersonic Drone Bay > --- WEAPON ----------- Assault Rifle Light Assault Rifle Improved Datajack > --- INVENTORY -------- Mining Laser [Rating: 23] Favorites ----------- Power Light Ion Engine Engine Light Ion Engine Propulsion Improved Aluminum Leg Leg Improved Aluminum Leg Utility Terrain Scanner Device Terrain Scanner Processor Visual Processing Unit Weapon Assault Rifle Energy Gun Medium Laser Ballistic Gun Assault Rifle Impact Weapon Flail Special Melee Weapon Improved Datajack Build | -11 -10 -10 -10 -9 -8 ------- Run | Scr Mat Min Exi Min Mat Slots Evolved 6 | 4 . . 1 1 . Power . | . . . . . . Propulsion 1 | 1 . . . . . Utility 3 | 1 . . 1 1 . Weapon 2 | 2 . . . . . Parts Attached 12 | 3 6 . 1 1 1 Power . | . . . . . . Engine . | . . . . . . Core . | . . . . . . Reactor . | . . . . . . Propulsion 3 | 1 2 . . . . Treads . | . . . . . . Leg 3 | 1 2 . . . . Wheel . | . . . . . . Hover . | . . . . . . Flight . | . . . . . . Utility 4 | . 2 . 1 1 . Device 2 | . 1 . 1 . . Storage . | . . . . . . Processor 2 | . 1 . . 1 . Hackware . | . . . . . . Protection . | . . . . . . Artifact . | . . . . . . Weapon 5 | 2 2 . . . 1 Energy Gun 1 | 1 . . . . . Energy Cannon . | . . . . . . Ballistic Gun 2 | 1 1 . . . . Ballistic Cannon . | . . . . . . Launcher . | . . . . . . Special Weapon . | . . . . . . Impact Weapon 1 | . 1 . . . . Slashing Weapon . | . . . . . . Piercing Weapon . | . . . . . . Special Melee Weapon 1 | . . . . . 1 Unidentified Prototypes . | . . . . . . Parts Lost 1 | . . . . . 1 Power . | . . . . . . Propulsion . | . . . . . . Utility . | . . . . . . Weapon 1 | . . . . . 1 Highest Loss Streak 1 | . . . . . 1 Average Slot Usage (%) 96 | . 93 100 100 100 94 Engine 11 | . 12 12 11 10 10 Leg 23 | . 25 25 23 21 20 Device 14 | . 10 12 17 21 20 Processor 12 | . 8 12 11 12 20 Energy Gun 10 | . 12 12 11 10 3 Ballistic Gun 23 | . 23 25 23 21 20 Naked Turns . | . . . . . . Heaviest Build 10 | 8 10 9 10 10 10 Greatest Support 26 | 20 26 26 26 26 26 Greatest Overweight (x) . | . . . . . . Average Overweight (x) . | . . . . . . Largest Inventory Capacity 1 | . 1 1 1 1 1 Average Capacity . | . . 1 1 1 1 Most Carried 1 | . 1 1 1 1 1 Average Carried . | . . 1 1 1 1 Final Capacity 1 | . 1 1 1 1 1 Final Carried 1 | . 1 1 1 1 1 Class Distribution -------------------- 91% | Skirmisher 4% | Gunner 3% | Assassin Dominant Class ---------------- Skirmisher | -10/Materials Skirmisher | -10/Mines Skirmisher | -10/Exiles Skirmisher | -9/Mines Skirmisher | -8/Materials Resources | -11 -10 -10 -10 -9 -8 ----------- Run | Scr Mat Min Exi Min Mat Matter Collected 597 | 210 104 61 29 30 163 Remotely . | . . . . . . Salvage Created 744 | . 186 79 . 76 403 Parts 47 | . 16 11 . 7 13 Haulers Intercepted . | . . . . . . Recyclers Shooed 2 | . 2 . . . . Parts Field Recycled . | . . . . . . Retrieved Matter . | . . . . . . Parts Self-Destructed . | . . . . . . Prevented . | . . . . . . Kills | -11 -10 -10 -10 -9 -8 ------- Run | Scr Mat Min Exi Min Mat Combat Hostiles Destroyed 20 | . 4 6 . 3 7 Guns 20 | . 4 6 . 3 7 Classes Destroyed 7 | . 4 . . . 3 Recycler 2 | . 1 . . . 1 Operator 1 | . . . . . 1 Watcher 1 | . 1 . . . . Swarmer 12 | . 3 6 . 3 . Grunt 4 | . 1 . . . 3 Sentry 2 | . . . . . 2 Hunter 2 | . . . . . 2 Best Kill Streak 4 | . 3 3 . 3 4 Combat Bots Only 3 | . 2 3 . 3 3 Max Kills in Single Turn 2 | . 1 2 . 1 1 Gunslinging 1 | . . 1 . . . Exploded . | . . . . . . Melee . | . . . . . . Uniques/NPCs Destroyed . | . . . . . . Combat | -11 -10 -10 -10 -9 -8 -------- Run | Scr Mat Min Exi Min Mat Damage Taken 1223 | . 110 138 . 71 904 Core 991 | . 89 106 . 55 741 Absorbed by Shields . | . . . . . . Redirected to Core 778 | . 63 100 . 48 567 Core Remaining (%) 88 | 100 . . . 76 . Volleys Fired 73 | . 19 7 . 5 42 Largest 3 | . 3 3 . 3 3 Hottest 90 | . 90 90 . 90 90 Shots Fired 205 | . 57 21 . 15 112 Gun 205 | . 57 21 . 15 112 Cannon . | . . . . . . Launcher . | . . . . . . Special . | . . . . . . Kinetic 146 | . 38 14 . 10 84 Thermal 59 | . 19 7 . 5 28 Explosive . | . . . . . . Electromagnetic . | . . . . . . Robot Hit Streak 11 | . 6 3 . 1 11 Robot Miss Streak 7 | . 7 2 . 4 4 Penetration Max . | . . . . . . Secondary Targets 5 | . . 1 . 1 3 Max Gunslinging Chain 1 | . . 1 . 1 1 Shots Hit Robots 119 | . 25 10 . 4 80 Core Hits 50 | . 12 6 . 4 28 Critical Hits 3 | . . . . . 3 Critical Kills . | . . . . . . Critical Parts Destroyed 3 | . . . . . 3 Melee Attacks 11 | . 10 . . . 1 Impact 10 | . 10 . . . . Slashing . | . . . . . . Piercing . | . . . . . . Sneak Attacks 1 | . . . . . 1 Combat Hostiles . | . . . . . . Follow-up Attacks . | . . . . . . Damage Inflicted 1242 | . 282 116 . 65 779 Guns 1242 | . 282 116 . 65 779 Cannons . | . . . . . . Explosions . | . . . . . . Melee . | . . . . . . Ramming . | . . . . . . Kinetic 803 | . 158 77 . 27 541 Thermal 439 | . 124 39 . 38 238 Explosive . | . . . . . . Electromagnetic . | . . . . . . Impact . | . . . . . . Slashing . | . . . . . . Piercing . | . . . . . . Highest Corruption . | . . . . . . Average Corruption . | . . . . . . Corruption Purged . | . . . . . . Overload Shots . | . . . . . . Overflow Damage . | . . . . . . Projectiles . | . . . . . . Explosions . | . . . . . . Melee . | . . . . . . Knockbacks . | . . . . . . Impact . | . . . . . . Kinetic . | . . . . . . Secondary . | . . . . . . Self-Inflicted Damage . | . . . . . . Shots . | . . . . . . Rammed . | . . . . . . Targets Rammed . | . . . . . . Kicked . | . . . . . . Crushed . | . . . . . . Highest Temperature 282 | . 120 130 . 150 282 Average Temperature 74 | . 44 59 . 75 102 Received Heat Transfer 294 | . 6 . . . 288 Effects 1 | . . . . . 1 Energy Bleed 1 | . . . . . 1 Siege Activations . | . . . . . . Robots Corrupted . | . . . . . . Combat Hostiles . | . . . . . . Parts Fried . | . . . . . . Impact Corruptions . | . . . . . . Robots Melted . | . . . . . . Combat Hostiles . | . . . . . . Parts Melted . | . . . . . . Heat Transferred 1295 | . 370 111 . 111 703 Parts Sabotaged . | . . . . . . Parts Stolen . | . . . . . . Parts Stripped . | . . . . . . Power Chain Reactions . | . . . . . . Missiles Intercepted . | . . . . . . Alert | -11 -10 -10 -10 -9 -8 ------- Run | Scr Mat Min Exi Min Mat Peak Influence 262 | . 157 155 . 70 262 Average Influence 106 | . 56 109 . 59 183 Maximum Alert Level 1 | . . . . . 1 Low Security (%) 83 | 100 100 100 . 100 40 Level 1 16 | . . . . . 59 Level 2 . | . . . . . . Level 3 . | . . . . . . Level 4 . | . . . . . . Level 5 . | . . . . . . High Security . | . . . . . . Max Security . | . . . . . . Squads Dispatched 5 | . 3 . . . 2 Investigation 2 | . 2 . . . . Extermination . | . . . . . . Reinforcement 3 | . 1 . . . 2 Assault . | . . . . . . Garrison . | . . . . . . Intercept . | . . . . . . Construction Impeded . | . . . . . . Haulers Reinforced . | . . . . . . Stealth | -11 -10 -10 -10 -9 -8 --------- Run | Scr Mat Min Exi Min Mat Distress Signals 2 | . 2 . . . . Communications Jammed . | . . . . . . Distress Signals . | . . . . . . Times Spotted 29 | . 10 6 . 3 10 Peak Tracking Total 5 | . 5 3 . 2 5 Tactical Retreats 3 | . 1 . . . 2 Traps | -11 -10 -10 -10 -9 -8 ------- Run | Scr Mat Min Exi Min Mat Traps Triggered 2 | . 2 . . . . Indirectly . | . . . . . . Trap Hack Attempts . | . . . . . . Triggered . | . . . . . . Disarmed 6 | . 6 . . . . Reprogrammed . | . . . . . . Reused . | . . . . . . Traps Extracted . | . . . . . . Installed . | . . . . . . Triggered . | . . . . . . Machines | -11 -10 -10 -10 -9 -8 ---------- Run | Scr Mat Min Exi Min Mat Machines Disabled 1 | . 1 . . . . Max in Single Turn 1 | . 1 . . . . Machines Sabotaged . | . . . . . . Garrisons Compromised . | . . . . . . Overloaded Fab Kills . | . . . . . . Fab Network Shutdowns . | . . . . . . Hacking | -11 -10 -10 -10 -9 -8 --------- Run | Scr Mat Min Exi Min Mat Machines Accessed 7 | . 5 . 2 . . Terminals 5 | . 5 . . . . Fabricators . | . . . . . . Repair Stations . | . . . . . . Recycling Units . | . . . . . . Scanalyzers . | . . . . . . Garrison Access . | . . . . . . Total Hacks 36 | . 12 . 24 . . Successful 32 | . 8 . 24 . . Failed 4 | . 4 . . . . Catastrophic . | . . . . . . Database Lockouts . | . . . . . . Manual 9 | . 8 . 1 . . Terminals 12 | . 12 . . . . Fabricators . | . . . . . . Repair Stations . | . . . . . . Recycling Units . | . . . . . . Scanalyzers . | . . . . . . Garrison Access . | . . . . . . Terminal Hacks 29 | . 5 . 24 . . Record 23 | . . . 23 . . Branch Access Points 1 | . 1 . . . . Locate Traps 3 | . 3 . . . . Disarm Traps 1 | . 1 . . . . EX-Prototype ID Bank 1 | . . . 1 . . Fabricator Hacks . | . . . . . . Repair Station Hacks . | . . . . . . Recycling Unit Hacks . | . . . . . . Scanalyzer . | . . . . . . Garrison Access Hacks . | . . . . . . Unauthorized Hacks 8 | . 8 . . . . Terminals 3 | . 3 . . . . Botnet 3 | . 3 . . . . Fabricators . | . . . . . . Repair Stations . | . . . . . . Recycling Units . | . . . . . . Scanalyzers . | . . . . . . Garrison Access . | . . . . . . Data Cores Recovered . | . . . . . . Used . | . . . . . . Hacking Detections 5 | . 5 . . . . Full Trace Events . | . . . . . . Feedback Events . | . . . . . . Feedback Blocked . | . . . . . . Robot Schematics Acquired . | . . . . . . Robots Built . | . . . . . . Matter . | . . . . . . Time . | . . . . . . Total Robot Build Rating . | . . . . . . Part Schematics Acquired . | . . . . . . Parts Built . | . . . . . . Matter . | . . . . . . Time . | . . . . . . Total Part Build Rating . | . . . . . . Parts Repaired . | . . . . . . Time . | . . . . . . Parts Recycled . | . . . . . . Recycled Matter . | . . . . . . Retrieved Matter . | . . . . . . Retrieved Components . | . . . . . . Parts Scanalyzed . | . . . . . . Part Schematics Acquired . | . . . . . . Parts Damaged . | . . . . . . Bothacking | -11 -10 -10 -10 -9 -8 ------------ Run | Scr Mat Min Exi Min Mat Used RIF Installer . | . . . . . . Robots Hacked 1 | . . . . . 1 Non-combat 1 | . . . . . 1 Combat . | . . . . . . Robot Hacks Applied 1 | . . . . . 1 parse_system 1 | . . . . . 1 Relay Couplers Released . | . . . . . . Robots Rewired . | . . . . . . Allies Hacked . | . . . . . . Hacks Repelled . | . . . . . . Allies | -11 -10 -10 -10 -9 -8 -------- Run | Scr Mat Min Exi Min Mat Total Allies . | . . . . . . Largest Group . | . . . . . . Highest-Rated Group . | . . . . . . Highest-Rated Ally . | . . . . . . Total Orders 3 | . . . 2 . 1 STAY 1 | . . . . . 1 RETURN 2 | . . . 2 . . Ally Attacks . | . . . . . . Total Damage . | . . . . . . Kills . | . . . . . . Allies Corrupted . | . . . . . . Allies Melted . | . . . . . . Intel | -11 -10 -10 -10 -9 -8 ------- Run | Scr Mat Min Exi Min Mat Robot Analysis Total . | . . . . . . Derelict Logs Recovered 1 | . . 1 . . . Drone Launches 3 | . . . 2 . 1 Drone Recoveries 2 | . . . 2 . . Exploration | -11 -10 -10 -10 -9 -8 ------------- Run | Scr Mat Min Exi Min Mat Turns Passed 1532 | 13 454 373 289 64 339 Spaces Moved 986 | 8 293 260 239 40 146 Core . | . . . . . . Treads . | . . . . . . Legs 986 | 8 293 260 239 40 146 Wheels . | . . . . . . Hover . | . . . . . . Flight . | . . . . . . Fastest Speed 120 | 120 120 120 120 120 120 Average Speed 120 | 120 120 120 120 120 120 Slowest Speed 120 | 120 120 120 120 120 120 Overloaded Moves . | . . . . . . Propulsion Burnouts . | . . . . . . Robots Hopped . | . . . . . . Cave-ins Triggered . | . . . . . . Exploration Rate (%) 37 | 2 62 65 63 16 15 Regions Visited 5 Branch Regions 3 Pre-discovered Areas 2 | . . 1 1 . . Known Exits Taken 1 | . 1 . . . . Unknown Exits Taken 4 | 1 . 1 1 1 . Scrap Searched 1 | . . . . 1 . Spaces Dug 4 | . 4 . . . . Terrain Destroyed 4 | . 4 . . . . Melee 4 | . 4 . . . . Projectile . | . . . . . . AOE . | . . . . . . Actions | -11 -10 -10 -10 -9 -8 --------- Run | Scr Mat Min Exi Min Mat Total 1169 | 10 342 306 240 45 226 Wait 65 | . 6 34 . . 25 Move 981 | 7 292 259 238 39 146 Hop . | . . . . . . Pick Up 3 | . 3 . . . . Fast Attach 8 | 3 2 . 1 1 1 Attach 1 | . 1 . . . . Detach . | . . . . . . Swap 3 | . 3 . . . . Drop 4 | . 4 . . . . Fire 73 | . 19 7 . 5 42 Melee 11 | . 10 . . . 1 Ram . | . . . . . . Kick . | . . . . . . Crush . | . . . . . . Escape Stasis . | . . . . . . Rewire . | . . . . . . Trap . | . . . . . . Miscellaneous 20 | . 2 6 1 . 11 Route ------- -11/Scrapyard -10/Materials (discovered 3 exits: [*Mat x2] / *Min) -10/Mines (discovered 3 exits: [*Mat x2] / *Exi) -10/Exiles (discovered 2 exits: [*Min x2]) -9/Mines -8/Materials History --------- Turn | Location | Event 1 | -11/Scrapyard | Upgraded with Propulsion slot (x1) 1 | -11/Scrapyard | Upgraded with Utility slot (x1) 1 | -11/Scrapyard | Upgraded with Weapon slot (x2) 1 | -11/Scrapyard | Discovered new exit (range 1) 14 | -11/Scrapyard | Entered Materials 147 | -10/Materials | Discovered new exit (range 4) 338 | -10/Materials | Discovered new exit (range 3) 371 | -10/Materials | Identified exit to Mines 378 | -10/Materials | Build established: Skirmisher 468 | -10/Materials | Entered Mines 508 | -10/Mines | Met a Derelict bent on vengeance 559 | -10/Mines | Reached level 2 596 | -10/Mines | Discovered new exit (range 13) 713 | -10/Mines | Discovered new exit (range 4) 821 | -10/Mines | Learned location of Mines (-9) 835 | -10/Mines | Deemed a non-threat by the Exiles lab entrance 835 | -10/Mines | Discovered new exit (range 5) 841 | -10/Mines | Entered Exiles 857 | -10/Exiles | Discovered new exit (range 16) 870 | -10/Exiles | Met 8R-AWN 889 | -10/Exiles | Met EX-HEX 925 | -10/Exiles | Met EX-BIN 939 | -10/Exiles | Aligned with FarCom system 940 | -10/Exiles | Given EX-Vault access code 969 | -10/Exiles | Opened EX-Vault 978 | -10/Exiles | Upgraded with Utility slot (x1) 979 | -10/Exiles | Found Supersonic Drone Bay 1012 | -10/Exiles | Warned to stay clear of 0b10 Research branches 1042 | -10/Exiles | Met EX-DEC 1054 | -10/Exiles | Learned location of Zion (-6) 1118 | -10/Exiles | Discovered new exit (range 12) 1130 | -10/Exiles | Left Exiles lab with Supersonic Drone Bay 1130 | -10/Exiles | Entered Mines 1144 | -9/Mines | Reached level 3 1179 | -9/Mines | Discovered new exit (range 8) 1184 | -9/Mines | Upgraded with Utility slot (x1) 1194 | -9/Mines | Entered Materials 1196 | -8/Materials | Reached level 4 1233 | -8/Materials | Core integrity fell below 50% 1258 | -8/Materials | Core integrity fell below 20% 1533 | -8/Materials | Self-destructed Last Messages --------------- 01360_ K-01 Serf collects debris. 01360_ Acquired 45 matter. 01363_ K-01 Serf collects debris. 01383_ U-05 Engineer lays Concrete. 01423_ K-01 Serf collects debris. 01453_ T-07 Excavator is excavating. 01463_ Y-45 Defender destroyed. 01466_ T-07 Excavator is excavating. 01468_ Acquired 20 matter. 01475_ T-07 Excavator is excavating. 01527_ Acquired Imp. Datajack. 01529_ Trailblazer released from Supersonic Drone Bay. 01531_ K-01 Serf collects debris. 01532_ Sneak attack on Trailblazer. 01532_ Jacked Trailblazer... >>parse_system Reading system data... New IDs: T-thruster Exp. Optical Array Map ----- +----------------------------------------------------+ | ?????????????????????????????????????????????????? | | ?????????????????????????????????????????????????? | | ?????????????????????????????????????????????????? | | ?????????????????????????????????????????????????? | | ?????????????????????????????????????????????????? | | ?????????????????????????????????????????????????? | | ?????????????????????????????????????????????????? | | ?????????????????????????????????????????????????? | | ???????????????????????????????????#?#+######+#### | | ?????????????????????????????????????? #?# | | ?????????????????????????????????????? #?# | | ????????????????????????????????? ?#?? #?# | | ???????????????????? ############### #?# | | ??????????????????Y# #?# | | ???????????????? ??# ### | | ????????????????? ?# """ """ ### | | ???????????????? ?# """"""""" #?# | | ?????????????? ???## ^ """"" " ### | | ??????????????????# #####/##### | | ???????????? ?????? k ## | | ???????????????????? k ##### ## | | ???????????????????? ###?# #? | | ??????????????????# ?? #+##+##### ## | | ?????????????????########### # ## * # | | ????????????#????# /[[ # # """ ##[% | | ??????????????? ?# = [@n/ # """ ##!= # | | ?????????????????# ! /[ # + """ ### ## | | ?????????????????# !# # ### ## | | ????????????????"########### #######! ! ### | | ????????????????????????#####+######?########## ## | | ?????????????? ?"??????## #?#??## # | | ???????????????????#??#?# ##?##### # | | ???????????????#??????"?# """ """ ##?########## # | | ????????????#???##??"Y" # """ """ #???#?#####?# #? | | ?????????????????##?????# """ """ #?##??##?####### | | ?????????????????#??????# """ """ ###?####### | | ?????????????? ?????"?? # """ """ ####??### # | | ??????????????????Y??"??#? ?#?#?####### | | ??????????????????????? ??######?#??######### | | ???????????????????????????#???#?#??????##### | | ?????????????????????????????????????######### # | | ???????????????????????????????????#?## # # | | ????????????????????????????????#???#?# ! # # | | ??????????????????????????????????????# + # | | ??????????????????????????????????????# # # | | ??????????????????????????????????????# "T" # # | | ????????????????????????????????#?###?# # # | | ??????????????????????????????????????############ | | ??????????????????????????????????#??????#????#### | | ???????????????????????????????????#???#???##?#### | +----------------------------------------------------+ Best States ------------- Heat Dissipation 37 Energy Generation 10 Energy Capacity 125 Matter Stores 300 Matter Capacity 300 Sight Range 18 Terrain Scan Range 14 Terrain Scan Density 110 Evasion (%) 40 Armor Integrity Analysis 33 Item Schematics ----------------- None Robot Schematics ------------------ None Fabricated ------------ Nothing Alien Tech Used ----------------- None Achievements -------------- None Challenges ------------ None RPGLIKE | -11 -10 -10 -10 -9 -8 --------- Run | Scr Mat Min Exi Min Mat Levels Raised 3 | . . 1 . 1 1 XP Earned 8515 | 3000 665 1200 350 850 2450 XP Spent 4780 | 2300 300 . 800 1100 280 Upgrades 14 | 4 2 . 1 1 6 Propulsion Slot 1 | 1 . . . . . Utility Slot 3 | 1 . . 1 1 . Weapon Slot 2 | 2 . . . . . Core Integrity 4 | . . . . . 4 Heat Dissipation 2 | . . . . . 2 Inventory Capacity 1 | . 1 . . . . Terrain Scan Density 1 | . 1 . . . . Protomatter Created 228 | . 10 38 . . 180 Integrity Restored 380 | . 30 101 . . 249 Core 357 | . 30 78 . . 249 Parts 23 | . . 23 . . . Protomatter Decayed 117 | . . 20 . . 97 Game ------ Seed TitaniumWeldingFlail Manual? 0 Play Time 00:14:38 Cumulative 237.3 hours Start 2019.12.25 @ 20:11:36 End 2019.12.25 @ 22:31:32 Sessions 3 Manual Loads 0 Difficulty Rogue Special Mode Winter2019/RPGLIKE Game No. 76 Rogue 23 Adventurer 33 Explorer 20 Win Type - Total 32 Types 18/4/4/2/2/1/1 Lore% 91 Gallery% 95 Achievement% 80 Wizard Run 0 Options --------- ASCII 0 Keyboard 0 Movement Numpad Keybinds 1 Fullscreen 0 Font 18/Terminus Map View 76x50 Tactical HUD 1 Map Filters NONE Filters NONE Steam 1 RUN: e9f2c669-cb69-4264-98df-eff279d18b79